[Event "FIDE WYCC Open U14 2023"]
[Site "Montesilvano"]
[Date "2023.11.22"]
[Round "9.32"]
[White "Gut, Lionel"]
[Black "Sharshenbekov, Emir"]
[Result "1/2-1/2"]
[ECO "E73"]
[WhiteElo "2113"]
[BlackElo "1893"]
[Annotator "NA RC"]
[PlyCount "84"]
[EventDate "2023.11.13"]
[EventType "swiss"]
[EventCountry "ITA"]
[SourceTitle "playchess.com"]
[Source "ChessBase"]
[SourceQuality "1"]
[TimeControl "40/5400+30:1800+30"]

1. d4 {[%emt 0:00:04]} Nf6 {[%emt 0:00:08]} 2. c4 {[%emt 0:00:04]} g6 {[%emt 0:00:09]} 3. Nc3 {[%emt 0:00:03]} Bg7 {[%emt 0:00:08]} 4. e4 {[%emt 0:00:04]} d6 {[%emt 0:00:08]} 5. Be2 {[%emt 0:00:03]} O-O {[%emt 0:00:49]} 6. Be3 {[%emt 0:00:02]} c5 {[%emt 0:00:20]} 7. d5 {[%emt 0:00:06]} e6 {[%emt 0:00:18]} 8. Nf3 {[%emt 0:00:05]} exd5 {[%emt 0:00:19]} 9. cxd5 {[%emt 0:00:01]} b5 {[%emt 0:35:20]} 10. e5 {[%emt 0:00:07]} dxe5 {[%emt 0:07:19]} 11. Bxc5 {[%emt 0:00:06]} Re8 {[%emt 0:00:05]} 12. Bxb5 {[%emt 0:00:05]} Nbd7 {[%emt 0:00:04]} 13. Ba3 {[%emt 0:26:17]} e4 {[%emt 0:16:26]} 14. Nd4 {[%emt 0:01:21]} e3 {[%emt 0:00:02]} 15. O-O {[%emt 0:01:28]} exf2+ {[%emt 0:00:01]} 16. Kh1 {[%emt 0:11:34]} Ne4 {[%emt 0:05:10]} 17. Nxe4 {[%emt 0:01:49]} Rxe4 {[%emt 0:01:46]} 18. Nf3 {[%emt 0:01:30]} Ne5 {[%emt 0:04:26]} 19. Rxf2 {[%emt 0:10:13]} Qb6 {[%emt 0:06:42]} 20. Qf1 {[%emt 0:01:02]} Ng4 {[%emt 0:00:09]} 21. Rd2 {[%emt 0:02:48]} Bh6 {[%emt 0:09:12]} 22. Rc2 {[%emt 0:02:04]} Bf5 {[%emt 0:09:31]} 23. Bc5 {[%emt 0:05:46]} Qf6 {[%emt 0:01:28]} 24. Re2 {[%emt 0:12:45]} Be3 {[%emt 0:00:52]} 25. b4 {[%emt 0:01:06]} Bxc5 {[%emt 0:00:43]} 26. bxc5 {[%emt 0:00:01]} Rxe2 {[%emt 0:00:01]} 27. Bxe2 {[%emt 0:00:01]} Ne3 {[%emt 0:00:01]} 28. Qg1 {[%emt 0:00:31]} Nxd5 {[%emt 0:01:07]} 29. Qd4 {[%emt 0:00:36]} Rc8 {[%emt 0:01:36]} 30. Rc1 {[%emt 0:00:17]} Qe7 {[%emt 0:00:32]} 31. Ba6 {[%emt 0:01:05]} Rd8 {[%emt 0:00:07]} 32. Qe5 {[%emt 0:06:17]} Qxe5 {[%emt 0:00:54]} 33. Nxe5 {[%emt 0:00:01]} Nc7 {[%emt 0:00:01]} 34. Bc4 {[%emt 0:01:02]} Be6 {[%emt 0:00:48]} 35. Bxe6 {[%emt 0:00:19]} Nxe6 {[%emt 0:00:29]} 36. c6 {[%emt 0:00:35]} Kf8 {[%emt 0:00:27]} 37. Kg1 {[%emt 0:00:18]} Ke8 {[%emt 0:00:43]} 38. Nd7 {[%emt 0:05:22]} Ke7 {[%emt 0:00:28]} 39. Rd1 {[%emt 0:01:07]} f6 {[%emt 0:00:32]} 40. Rb1 {[%emt 0:00:00]} Rc8 {[%emt 0:00:00]} 41. Rb7 {[%emt 0:05:46]} Rxc6 {[%emt 0:06:27]} 42. Rxa7 {[%emt 0:04:18]} Nc7 {[%emt 0:09:31]} 1/2-1/2

[Event "FIDE WYCC Open U14 2023"]
[Site "Montesilvano"]
[Date "2023.11.22"]
[Round "9.33"]
[White "Medhus, Vitus Bondo"]
[Black "Yun, Hungi"]
[Result "1-0"]
[ECO "B23"]
[WhiteElo "2108"]
[BlackElo "1884"]
[Annotator "NA COMBH"]
[PlyCount "45"]
[EventDate "2023.11.13"]
[EventType "swiss"]
[EventCountry "ITA"]
[SourceTitle "playchess.com"]
[Source "ChessBase"]
[SourceQuality "1"]
[TimeControl "40/5400+30:1800+30"]

1. e4 {[%emt 0:00:07]} c5 {[%emt 0:00:46]} 2. Nc3 {[%emt 0:00:24]} d6 3. f4 {[%emt 0:00:09]} g6 {[%emt 0:01:01]} 4. Nf3 {[%emt 0:00:06]} Bg7 {[%emt 0:00:18]} 5. Bb5+ {[%emt 0:00:06]} Bd7 {[%emt 0:01:01]} 6. Bc4 {[%emt 0:00:07]} Nc6 {[%emt 0:00:13]} 7. d3 {[%emt 0:00:08]} e6 {[%emt 0:01:03]} 8. f5 {[%emt 0:00:09]} Nf6 {[%emt 0:11:47]} 9. Bf4 {[%emt 0:03:04]} Qb8 {[%emt 0:15:37]} 10. O-O {[%emt 0:17:33]} O-O {[%emt 0:06:37]} 11. fxe6 {[%emt 0:11:02]} fxe6 {[%emt 0:08:26]} 12. Nb5 {[%emt 0:01:21]} Ne8 {[%emt 0:01:20]} 13. Ng5 {[%emt 0:01:13]} Nd4 {[%emt 0:01:12]} 14. Nxd4 {[%emt 0:00:44]} Bxd4+ {[%emt 0:00:06]} 15. Kh1 {[%emt 0:00:08]} Ng7 {[%emt 0:20:32]} 16. Qg4 {[%emt 0:04:51]} Bf6 {[%emt 0:00:27]} 17. Nxe6 {[%emt 0:04:08]} Bxe6 {[%emt 0:00:55]} 18. Bxe6+ {[%emt 0:00:09]} Kh8 {[%emt 0:00:17]} 19. Bd5 {[%emt 0:01:47]} Qc7 {[%emt 0:00:33]} 20. Rf3 {[%emt 0:04:40]} Rae8 {[%emt 0:01:08]} 21. Raf1 {[%emt 0:00:30]} Bxb2 {[%emt 0:06:26]} 22. Bc1 {[%emt 0:02:40]} Rxf3 {[%emt 0:07:53]} 23. Qxf3 {[%emt 0:00:10]} 1-0

[Event "FIDE WYCC Open U14 2023"]
[Site "Montesilvano"]
[Date "2023.11.22"]
[Round "9.34"]
[White "Yang, Sylvia Siyuan"]
[Black "Lin, Leo"]
[Result "0-1"]
[ECO "A04"]
[WhiteElo "1973"]
[BlackElo "2097"]
[Annotator "NA RC"]
[PlyCount "82"]
[EventDate "2023.11.13"]
[EventType "swiss"]
[EventCountry "ITA"]
[SourceTitle "playchess.com"]
[Source "ChessBase"]
[SourceQuality "1"]
[TimeControl "40/5400+30:1800+30"]

1. Nf3 {[%emt 0:00:17]} d6 {[%emt 0:00:46]} 2. d4 {[%emt 0:00:16]} Nf6 {[%emt 0:00:27]} 3. g3 {[%emt 0:00:05]} Nbd7 {[%emt 0:00:19]} 4. Bg2 {[%emt 0:00:42]} e5 {[%emt 0:00:11]} 5. c4 {[%emt 0:00:23]} Be7 {[%emt 0:00:31]} 6. O-O {[%emt 0:07:05]} O-O {[%emt 0:00:26]} 7. Nc3 {[%emt 0:01:02]} c6 {[%emt 0:00:07]} 8. e4 {[%emt 0:02:41]} a6 {[%emt 0:00:37]} 9. a4 {[%emt 0:06:28]} a5 {[%emt 0:00:18]} 10. b3 {[%emt 0:01:11]} exd4 {[%emt 0:07:47]} 11. Nxd4 {[%emt 0:00:06]} Nc5 {[%emt 0:00:28]} 12. Rb1 {[%emt 0:07:38]} Re8 {[%emt 0:05:05]} 13. h3 {[%emt 0:05:42]} Bf8 {[%emt 0:01:14]} 14. Qc2 {[%emt 0:00:11]} g6 {[%emt 0:08:37]} 15. Be3 {[%emt 0:06:29]} Bg7 {[%emt 0:04:07]} 16. Rfe1 {[%emt 0:00:35]} Nfd7 {[%emt 0:04:59]} 17. f4 {[%emt 0:05:51]} f5 {[%emt 0:04:02]} 18. Bf2 {[%emt 0:05:44]} fxe4 {[%emt 0:02:35]} 19. Nxe4 {[%emt 0:00:02]} Nxe4 {[%emt 0:02:31]} 20. Rxe4 {[%emt 0:00:01]} Rxe4 {[%emt 0:00:17]} 21. Qxe4 {[%emt 0:00:07]} Nc5 {[%emt 0:01:41]} 22. Qf3 {[%emt 0:01:15]} Qf8 {[%emt 0:07:17]} 23. Rd1 {[%emt 0:03:26]} Bd7 {[%emt 0:20:33]} 24. g4 {[%emt 0:01:36]} Re8 {[%emt 0:05:31]} 25. Bg3 {[%emt 0:07:24]} Ne4 {[%emt 0:10:11]} 26. Be1 {[%emt 0:03:41]} c5 {[%emt 0:08:15]} 27. Nb5 {[%emt 0:01:05]} Bc6 {[%emt 0:00:33]} 28. Qf1 {[%emt 0:00:01]} Bxb5 {[%emt 0:02:03]} 29. cxb5 {[%emt 0:03:01]} Bd4+ {[%emt 0:00:32]} 30. Rxd4 {[%emt 0:00:01]} cxd4 {[%emt 0:00:05]} 31. Qc4+ {[%emt 0:00:08]} Qf7 {[%emt 0:01:16]} 32. Qxd4 {[%emt 0:00:01]} Qxf4 {[%emt 0:01:12]} 33. Qd5+ {[%emt 0:00:18]} Kf8 {[%emt 0:00:51]} 34. Bxa5 {[%emt 0:02:45]} Qc1+ {[%emt 0:00:09]} 35. Kh2 {[%emt 0:00:23]} Qf4+ {[%emt 0:00:01]} 36. Kg1 {[%emt 0:00:01]} Qe3+ {[%emt 0:00:40]} 37. Kh2 {[%emt 0:01:03]} Qf4+ {[%emt 0:00:48]} 38. Kg1 {[%emt 0:00:17]} Qf2+ {[%emt 0:01:28]} 39. Kh2 {[%emt 0:00:27]} Qg3+ {[%emt 0:00:04]} 40. Kg1 {[%emt 0:00:00]} Rc8 {[%emt 0:00:00]} 41. Qd1 {[%emt 0:02:56]} Qe3+ {[%emt 0:01:20]} 0-1

[Event "FIDE WYCC Open U14 2023"]
[Site "Montesilvano"]
[Date "2023.11.22"]
[Round "9.35"]
[White "Kjartansson, Matthias Bjorgvin"]
[Black "Asikainen, Eeli"]
[Result "0-1"]
[ECO "E91"]
[WhiteElo "1651"]
[BlackElo "2081"]
[Annotator "NA RC"]
[PlyCount "42"]
[EventDate "2023.11.13"]
[EventType "swiss"]
[EventCountry "ITA"]
[SourceTitle "playchess.com"]
[Source "ChessBase"]
[SourceQuality "1"]
[TimeControl "40/5400+30:1800+30"]

1. d4 {[%emt 0:00:02]} Nf6 {[%emt 0:00:15]} 2. c4 {[%emt 0:00:07]} g6 {[%emt 0:00:04]} 3. Nc3 {[%emt 0:00:06]} Bg7 {[%emt 0:00:04]} 4. e4 {[%emt 0:00:14]} d6 {[%emt 0:00:07]} 5. Be2 {[%emt 0:00:23]} O-O {[%emt 0:00:23]} 6. Nf3 {[%emt 0:00:41]} Nbd7 {[%emt 0:00:17]} 7. O-O {[%emt 0:00:20]} e5 {[%emt 0:00:20]} 8. Be3 {[%emt 0:00:51]} Qe7 {[%emt 0:00:28]} 9. Qc2 {[%emt 0:04:06]} c6 {[%emt 0:02:15]} 10. Rad1 exd4 {[%emt 0:15:17]} 11. Nxd4 {[%emt 0:05:42]} Nc5 {[%emt 0:10:09]} 12. f3 {[%emt 0:09:09]} d5 {[%emt 0:12:21]} 13. cxd5 {[%emt 0:00:30]} cxd5 {[%emt 0:00:11]} 14. Bg5 {[%emt 0:00:25]} Ne6 {[%emt 0:31:31]} 15. Nxd5 {[%emt 0:01:48]} Nxd5 {[%emt 0:01:08]} 16. Bxe7 {[%emt 0:00:54]} Nxd4 {[%emt 0:00:09]} 17. Bxf8 {[%emt 0:37:45]} Nxc2 {[%emt 0:00:23]} 18. Rxd5 {[%emt 0:00:07]} Bxf8 {[%emt 0:08:55]} 19. Rd8 {[%emt 0:01:15]} Nb4 {[%emt 0:00:28]} 20. Rc1 {[%emt 0:00:28]} Nc6 {[%emt 0:00:20]} 21. f4 {[%emt 0:00:13]} Nxd8 {[%emt 0:00:08]} 0-1

[Event "FIDE WYCC Open U14 2023"]
[Site "Montesilvano"]
[Date "2023.11.23"]
[Round "10.1"]
[White "Akhmedov, David"]
[Black "Vetokhin, Savva"]
[Result "1-0"]
[ECO "A13"]
[WhiteElo "2240"]
[BlackElo "2403"]
[Annotator "RC"]
[PlyCount "91"]
[EventDate "2023.11.13"]
[EventType "swiss"]
[EventCountry "ITA"]
[SourceTitle "playchess.com"]
[Source "ChessBase"]
[SourceQuality "1"]
[TimeControl "40/5400+30:1800+30"]

1. Nf3 Nf6 2. c4 {[%emt 0:00:17]} e6 {[%emt 0:01:20]} 3. g3 {[%emt 0:00:18]} d5 {[%emt 0:00:06]} 4. Bg2 {[%emt 0:00:11]} dxc4 {[%emt 0:00:13]} 5. O-O {[%emt 0:00:32]} c5 {[%emt 0:01:17]} 6. Na3 {[%emt 0:00:33]} Be7 7. Nxc4 {[%emt 0:00:24]} Nc6 {[%emt 0:05:44]} 8. b3 {[%emt 0:00:32]} O-O {[%emt 0:08:20]} 9. Bb2 {[%emt 0:00:14]} Bd7 {[%emt 0:05:27]} 10. d4 {[%emt 0:08:44]} cxd4 {[%emt 0:01:49]} 11. Nxd4 {[%emt 0:00:22]} Nd5 {[%emt 0:02:08]} 12. e4 {[%emt 0:03:49]} Nc7 {[%emt 0:04:27]} 13. Rc1 {[%emt 0:11:02]} Bf6 {[%emt 0:13:38]} 14. Nxc6 {[%emt 0:15:06]} Bxc6 {[%emt 0:01:54]} 15. Bxf6 {[%emt 0:05:04]} Qxf6 {[%emt 0:05:06]} 16. Na5 {[%emt 0:01:57]} Rfd8 {[%emt 0:04:28]} 17. Qc2 {[%emt 0:01:26]} Nb5 {[%emt 0:01:59]} 18. Nxc6 {[%emt 0:00:50]} bxc6 {[%emt 0:00:04]} 19. Qxc6 {[%emt 0:01:55]} Nd4 {[%emt 0:06:39]} 20. Qc4 {[%emt 0:04:27]} e5 {[%emt 0:00:55]} 21. f4 {[%emt 0:07:05]} Rf8 {[%emt 0:07:36]} 22. fxe5 {[%emt 0:09:11]} Qxe5 {[%emt 0:02:59]} 23. Qc5 {[%emt 0:01:45]} Rfe8 {[%emt 0:09:58]} 24. Qxe5 {[%emt 0:02:02]} Rxe5 {[%emt 0:00:19]} 25. Rc7 {[%emt 0:01:06]} f6 {[%emt 0:00:24]} 26. Rd1 {[%emt 0:01:37]} Ne6 {[%emt 0:01:33]} 27. Re7 {[%emt 0:01:30]} Nd4 {[%emt 0:00:20]} 28. Rb7 {[%emt 0:06:43]} Rd8 {[%emt 0:01:47]} 29. Kf2 {[%emt 0:03:09]} a5 {[%emt 0:00:52]} 30. Rc7 {[%emt 0:05:07]} Rd6 {[%emt 0:02:45]} 31. Bf1 {[%emt 0:01:57]} h5 {[%emt 0:02:14]} 32. Rc8+ {[%emt 0:01:12]} Kh7 {[%emt 0:00:37]} 33. Rc4 {[%emt 0:00:16]} Nb5 {[%emt 0:00:49]} 34. Rxd6 {[%emt 0:00:05]} Nxd6 {[%emt 0:00:07]} 35. Rd4 {[%emt 0:00:08]} Re6 {[%emt 0:02:15]} 36. Bh3 {[%emt 0:01:01]} f5 {[%emt 0:00:06]} 37. e5 {[%emt 0:00:24]} Nb5 {[%emt 0:00:07]} 38. Bxf5+ {[%emt 0:00:23]} Kh6 {[%emt 0:03:30]} 39. Rd5 {[%emt 0:00:37]} Rb6 {[%emt 0:00:09]} 40. a4 {[%emt 0:00:00]} Na7 {[%emt 0:00:00]} 41. Rxa5 {[%emt 0:03:46]} Nc6 {[%emt 0:01:50]} 42. Rd5 {[%emt 0:00:37]} Kg5 {[%emt 0:00:34]} 43. Bd7 {[%emt 0:00:58]} Nb4 {[%emt 0:01:08]} 44. Rb5 {[%emt 0:00:55]} Rxb5 {[%emt 0:00:32]} 45. Bxb5 {[%emt 0:00:50]} Kf5 {[%emt 0:00:48]} 46. a5 {[%emt 0:00:07]} 1-0

[Event "FIDE WYCC Open U14 2023"]
[Site "Montesilvano"]
[Date "2023.11.23"]
[Round "10.2"]
[White "Mamedov, Edgar"]
[Black "Banh Gia Huy"]
[Result "1/2-1/2"]
[ECO "A13"]
[WhiteElo "2234"]
[BlackElo "2397"]
[Annotator "RC"]
[PlyCount "200"]
[EventDate "2023.11.13"]
[EventType "swiss"]
[EventCountry "ITA"]
[SourceTitle "playchess.com"]
[Source "ChessBase"]
[SourceQuality "1"]
[TimeControl "40/5400+30:1800+30"]

1. c4 e6 2. Nf3 Nf6 3. Nc3 d5 4. e3 Be7 5. b3 O-O 6. Bb2 {[%emt 0:01:30]} c5 {[%emt 0:03:34]} 7. cxd5 {[%emt 0:00:28]} exd5 {[%emt 0:00:10]} 8. d4 {[%emt 0:00:34]} Nc6 {[%emt 0:00:30]} 9. Be2 {[%emt 0:00:30]} Ne4 {[%emt 0:00:30]} 10. dxc5 {[%emt 0:00:30]} Bf6 {[%emt 0:00:30]} 11. Rc1 {[%emt 0:00:30]} Qa5 {[%emt 0:00:30]} 12. Nd4 {[%emt 0:00:30]} Nxc5 {[%emt 0:00:30]} 13. Nxc6 {[%emt 0:00:30]} bxc6 {[%emt 0:00:30]} 14. O-O {[%emt 0:00:30]} Ne4 {[%emt 0:00:30]} 15. Qc2 {[%emt 0:00:30]} Nxc3 {[%emt 0:00:30]} 16. Bxc3 {[%emt 0:00:30]} Bxc3 {[%emt 0:00:30]} 17. Qxc3 {[%emt 0:00:30]} Qxa2 {[%emt 0:00:30]} 18. Rc2 {[%emt 0:00:30]} Qa3 {[%emt 0:00:30]} 19. Ra1 {[%emt 0:00:30]} Qe7 {[%emt 0:00:30]} 20. Qxc6 {[%emt 0:00:30]} Be6 {[%emt 0:00:30]} 21. Qa4 {[%emt 0:00:30]} Rab8 {[%emt 0:34:44]} 22. Rac1 {[%emt 0:37:33]} Qb4 {[%emt 0:09:16]} 23. Qxa7 {[%emt 0:07:17]} Qxb3 {[%emt 0:00:49]} 24. h3 {[%emt 0:06:45]} Qb6 {[%emt 0:00:31]} 25. Qa1 {[%emt 0:00:57]} Rfd8 {[%emt 0:02:09]} 26. Rd2 {[%emt 0:00:47]} Ra8 {[%emt 0:07:01]} 27. Qe5 {[%emt 0:00:55]} Qb8 {[%emt 0:01:09]} 28. Qd4 {[%emt 0:01:39]} Ra7 {[%emt 0:01:05]} 29. Rb2 {[%emt 0:03:28]} Rb7 {[%emt 0:00:25]} 30. Rxb7 {[%emt 0:00:15]} Qxb7 {[%emt 0:00:03]} 31. Bf3 {[%emt 0:00:19]} Qe7 {[%emt 0:05:38]} 32. Rd1 {[%emt 0:00:56]} Rd7 {[%emt 0:00:15]} 33. Qe5 {[%emt 0:00:39]} Qd6 {[%emt 0:03:27]} 34. Ra1 {[%emt 0:04:22]} Qf8 {[%emt 0:09:44]} 35. Ra5 {[%emt 0:05:23]} Qd8 {[%emt 0:00:39]} 36. Rb5 {[%emt 0:00:43]} Rd6 {[%emt 0:01:26]} 37. Qb2 {[%emt 0:02:21]} Rc6 {[%emt 0:03:12]} 38. Bxd5 {[%emt 0:01:35]} Bxd5 {[%emt 0:00:06]} 39. Rxd5 {[%emt 0:00:10]} Qc7 {[%emt 0:01:16]} 40. g3 {[%emt 0:00:00]} h6 {[%emt 0:00:00]} 41. Qb5 {[%emt 0:22:01]} Rc1+ {[%emt 0:02:15]} 42. Kg2 {[%emt 0:00:13]} Qc6 {[%emt 0:02:00]} 43. Qxc6 {[%emt 0:10:43]} Rxc6 {[%emt 0:00:02]} 44. g4 {[%emt 0:00:06]} g5 {[%emt 0:05:35]} 45. h4 {[%emt 0:03:27]} gxh4 {[%emt 0:01:05]} 46. Rh5 {[%emt 0:01:06]} Kg7 {[%emt 0:00:03]} 47. Rxh4 {[%emt 0:00:11]} Ra6 {[%emt 0:05:00]} 48. Rh5 {[%emt 0:00:11]} Ra1 {[%emt 0:00:07]} 49. Rb5 {[%emt 0:00:48]} Ra4 {[%emt 0:00:39]} 50. Kg3 {[%emt 0:00:15]} Kg6 {[%emt 0:04:15]} 51. f3 {[%emt 0:05:51]} Ra3 {[%emt 0:04:06]} 52. e4 {[%emt 0:00:28]} f6 {[%emt 0:00:59]} 53. Kf4 {[%emt 0:00:26]} Ra6 {[%emt 0:02:57]} 54. Rd5 {[%emt 0:00:40]} Ra3 {[%emt 0:02:39]} 55. Rc5 {[%emt 0:05:21]} Rb3 {[%emt 0:00:25]} 56. e5 {[%emt 0:01:04]} Rb4+ {[%emt 0:00:23]} 57. Kg3 {[%emt 0:00:05]} fxe5 {[%emt 0:03:37]} 58. Rxe5 {[%emt 0:00:11]} Rb3 {[%emt 0:00:09]} 59. Re6+ {[%emt 0:00:08]} Kg5 {[%emt 0:00:19]} 60. Re5+ {[%emt 0:00:18]} Kg6 {[%emt 0:00:12]} 61. Rf5 {[%emt 0:00:11]} Ra3 {[%emt 0:00:47]} 62. Kh4 {[%emt 0:01:52]} Rb3 {[%emt 0:00:23]} 63. Kg3 {[%emt 0:04:32]} Ra3 {[%emt 0:00:06]} 64. Rh5 {[%emt 0:00:40]} Rb3 {[%emt 0:00:22]} 65. Rh1 {[%emt 0:00:29]} Ra3 {[%emt 0:00:37]} 66. Rh3 {[%emt 0:00:36]} Rb3 {[%emt 0:00:42]} 67. Rh2 {[%emt 0:01:03]} Ra3 {[%emt 0:00:18]} 68. Rh5 {[%emt 0:00:43]} Rb3 {[%emt 0:00:19]} 69. Re5 {[%emt 0:00:05]} Kf6 {[%emt 0:01:11]} 70. Re2 {[%emt 0:01:19]} Kg6 {[%emt 0:03:34]} 71. Rd2 {[%emt 0:00:16]} Kg5 {[%emt 0:04:03]} 72. Kf2 {[%emt 0:00:30]} Kh4 {[%emt 0:04:04]} 73. Rd6 {[%emt 0:02:41]} Kg5 {[%emt 0:02:50]} 74. Rd5+ {[%emt 0:00:15]} Kf6 {[%emt 0:00:06]} 75. f4 {[%emt 0:00:26]} Ra3 {[%emt 0:02:19]} 76. Kg2 {[%emt 0:00:11]} Kg6 {[%emt 0:00:12]} 77. Rd6+ {[%emt 0:00:06]} Kg7 {[%emt 0:00:01]} 78. Rb6 {[%emt 0:00:51]} Rc3 {[%emt 0:00:14]} 79. Kf2 {[%emt 0:01:45]} Ra3 {[%emt 0:00:06]} 80. Re6 {[%emt 0:00:22]} Rb3 {[%emt 0:00:21]} 81. Re3 {[%emt 0:00:06]} Rb1 {[%emt 0:00:20]} 82. Kg3 {[%emt 0:01:27]} Kf6 {[%emt 0:00:51]} 83. Kh4 {[%emt 0:00:09]} Rh1+ {[%emt 0:00:34]} 84. Rh3 {[%emt 0:00:03]} Rg1 {[%emt 0:00:41]} 85. f5 {[%emt 0:00:12]} Ra1 {[%emt 0:01:48]} 86. Kh5 {[%emt 0:00:37]} Rg1 {[%emt 0:00:08]} 87. Rh2 {[%emt 0:00:08]} Kg7 {[%emt 0:01:36]} 88. Kh4 {[%emt 0:00:05]} Kf6 {[%emt 0:00:08]} 89. Rh3 {[%emt 0:00:56]} Ra1 {[%emt 0:00:25]} 90. Rb3 {[%emt 0:00:27]} Rh1+ {[%emt 0:00:23]} 91. Kg3 {[%emt 0:00:05]} Kg5 {[%emt 0:03:33]} 92. Rb6 {[%emt 0:00:13]} Rg1+ {[%emt 0:00:05]} 93. Kf3 {[%emt 0:00:16]} h5 {[%emt 0:02:29]} 94. Rg6+ {[%emt 0:00:23]} Kh4 {[%emt 0:00:01]} 95. gxh5 {[%emt 0:00:23]} Rf1+ {[%emt 0:00:07]} 96. Ke4 {[%emt 0:00:07]} Kxh5 {[%emt 0:00:03]} 97. Ke5 {[%emt 0:04:28]} Ra1 {[%emt 0:00:01]} 98. Rg2 {[%emt 0:00:33]} Kh6 {[%emt 0:00:13]} 99. Rd2 {[%emt 0:00:57]} Kg7 {[%emt 0:00:37]} 100. Rd7+ {[%emt 0:00:26]} Kf8 {[%emt 0:00:09]} 1/2-1/2

[Event "FIDE WYCC Open U14 2023"]
[Site "Montesilvano"]
[Date "2023.11.23"]
[Round "10.3"]
[White "Agasarov, Benik"]
[Black "Bharadia Yash"]
[Result "1/2-1/2"]
[ECO "E17"]
[WhiteElo "2360"]
[BlackElo "2071"]
[Annotator "RC"]
[PlyCount "118"]
[EventDate "2023.11.13"]
[EventType "swiss"]
[EventCountry "ITA"]
[SourceTitle "playchess.com"]
[Source "ChessBase"]
[SourceQuality "1"]
[TimeControl "40/5400+30:1800+30"]

1. d4 Nf6 {[%emt 0:01:40]} 2. c4 {[%emt 0:00:18]} e6 {[%emt 0:00:08]} 3. Nf3 {[%emt 0:00:09]} b6 {[%emt 0:00:07]} 4. g3 {[%emt 0:00:04]} Bb7 {[%emt 0:00:07]} 5. Bg2 {[%emt 0:00:05]} Be7 {[%emt 0:03:24]} 6. O-O {[%emt 0:00:09]} O-O {[%emt 0:00:04]} 7. Re1 {[%emt 0:00:24]} Na6 {[%emt 0:00:30]} 8. Nc3 {[%emt 0:02:51]} Ne4 {[%emt 0:00:28]} 9. h4 {[%emt 0:00:13]} c5 {[%emt 0:20:31]} 10. d5 {[%emt 0:04:15]} Nxc3 {[%emt 0:00:29]} 11. bxc3 {[%emt 0:00:06]} d6 {[%emt 0:16:17]} 12. Ng5 {[%emt 0:16:14]} e5 {[%emt 0:10:28]} 13. Qd3 {[%emt 0:00:12]} Bxg5 {[%emt 0:00:57]} 14. hxg5 {[%emt 0:00:23]} f5 {[%emt 0:00:54]} 15. gxf6 {[%emt 0:08:26]} Qxf6 {[%emt 0:00:18]} 16. Be3 {[%emt 0:00:04]} Bc8 {[%emt 0:01:16]} 17. Be4 {[%emt 0:00:05]} Bf5 {[%emt 0:01:46]} 18. a4 {[%emt 0:03:54]} Nb8 {[%emt 0:12:28]} 19. a5 {[%emt 0:06:12]} Nd7 {[%emt 0:00:44]} 20. Reb1 {[%emt 0:00:08]} g6 {[%emt 0:08:31]} 21. Kg2 {[%emt 0:04:14]} Bxe4+ {[%emt 0:08:52]} 22. Qxe4 {[%emt 0:00:06]} Qf5 {[%emt 0:00:10]} 23. Qh4 {[%emt 0:02:09]} Qf7 {[%emt 0:01:16]} 24. Rb2 {[%emt 0:01:05]} Rab8 {[%emt 0:03:00]} 25. axb6 {[%emt 0:07:34]} Nxb6 {[%emt 0:00:27]} 26. Rba2 {[%emt 0:00:03]} Rb7 {[%emt 0:00:07]} 27. f3 {[%emt 0:00:08]} e4 {[%emt 0:05:49]} 28. Qxe4 {[%emt 0:00:53]} Re8 {[%emt 0:00:35]} 29. Qd3 {[%emt 0:02:16]} Nxc4 {[%emt 0:00:14]} 30. Bf4 {[%emt 0:06:23]} Nb2 {[%emt 0:00:50]} 31. Qc2 {[%emt 0:01:30]} Nc4 {[%emt 0:00:18]} 32. e4 {[%emt 0:00:51]} g5 {[%emt 0:03:06]} 33. Bc1 {[%emt 0:05:18]} g4 {[%emt 0:00:11]} 34. f4 Rbe7 {[%emt 0:00:20]} 35. Qe2 {[%emt 0:00:37]} Rxe4 {[%emt 0:00:32]} 36. Qxg4+ {[%emt 0:00:02]} Kh8 {[%emt 0:01:01]} 37. Rxa7 {[%emt 0:00:14]} R4e7 {[%emt 0:00:30]} 38. Rxe7 {[%emt 0:01:23]} Qxd5+ {[%emt 0:00:20]} 39. Qf3 {[%emt 0:06:05]} Qxf3+ {[%emt 0:00:02]} 40. Kxf3 {[%emt 0:00:00]} Rxe7 {[%emt 0:00:00]} 41. f5 {[%emt 0:00:26]} Re1 {[%emt 0:08:29]} 42. Ra8+ {[%emt 0:01:55]} Kg7 {[%emt 0:01:48]} 43. Bf4 {[%emt 0:00:08]} h5 {[%emt 0:01:02]} 44. Kf2 {[%emt 0:07:54]} Re7 {[%emt 0:11:09]} 45. Bg5 {[%emt 0:01:52]} Rf7 {[%emt 0:00:26]} 46. f6+ {[%emt 0:00:07]} Kg6 {[%emt 0:00:05]} 47. Rg8+ {[%emt 0:00:46]} Kf5 {[%emt 0:03:37]} 48. Bh4 {[%emt 0:00:24]} Ne5 {[%emt 0:00:07]} 49. Ke2 {[%emt 0:02:30]} Ng4 {[%emt 0:03:57]} 50. Rg5+ {[%emt 0:00:40]} Ke6 {[%emt 0:00:04]} 51. Rxh5 {[%emt 0:00:09]} Nxf6 {[%emt 0:00:30]} 52. Rh6 {[%emt 0:00:03]} Kf5 {[%emt 0:00:27]} 53. Bxf6 {[%emt 0:00:26]} Rxf6 {[%emt 0:00:02]} 54. g4+ {[%emt 0:00:19]} Kg5 {[%emt 0:00:25]} 55. Rxf6 {[%emt 0:00:10]} Kxf6 {[%emt 0:00:06]} 56. c4 {[%emt 0:00:29]} d5 {[%emt 0:00:27]} 57. cxd5 {[%emt 0:00:40]} Ke5 {[%emt 0:00:10]} 58. Kd3 {[%emt 0:00:04]} Kxd5 {[%emt 0:00:05]} 59. g5 {[%emt 0:00:05]} Ke5 {[%emt 0:00:06]} 1/2-1/2